[Event "*** Titled Tuesday Blitz"]
[Site "Chess.com"]
[Date "2019.05.07"]
[Round "7"]
[White "Cryptochess"]
[Black "wonderfultime"]
[Result "0-1"]
[WhiteElo "2584"]
[BlackElo "2950"]
[TimeControl "180+2"]
[EndTime "14:43:57 PDT"]
[Termination "wonderfultime won by resignation"]

1. e4 {[%clk 0:03:00.2]} 1... c5 {[%clk 0:02:56.1]} 2. Nc3 {[%clk 0:02:59]} 2...
Nc6 {[%clk 0:02:56.6]} 3. g3 {[%clk 0:03:00.2]} 3... g6 {[%clk 0:02:57.7]} 4.
Bg2 {[%clk 0:03:01.9]} 4... Bg7 {[%clk 0:02:59.3]} 5. d3 {[%clk 0:03:03.7]} 5...
d6 {[%clk 0:03:00.9]} 6. Be3 {[%clk 0:03:05.4]} 6... Rb8 {[%clk 0:03:01.4]} 7.
Nf3 {[%clk 0:03:01.8]} 7... Nf6 {[%clk 0:02:59.9]} 8. O-O {[%clk 0:03:01.8]}
8... O-O {[%clk 0:03:00.8]} 9. h3 {[%clk 0:03:02.2]} 9... Nd7 {[%clk 0:02:55.7]}
10. Qd2 {[%clk 0:03:01.9]} 10... Nd4 {[%clk 0:02:55.6]} 11. Nh4 {[%clk
0:02:37.4]} 11... e5 {[%clk 0:02:47.4]} 12. Nd5 {[%clk 0:02:05.3]} 12... Nb6
{[%clk 0:02:37.4]} 13. c3 {[%clk 0:01:42.1]} 13... Nc6 {[%clk 0:02:15.3]} 14. f4
{[%clk 0:01:28.9]} 14... exf4 {[%clk 0:02:13.7]} 15. Bxf4 {[%clk 0:01:26.9]}
15... Nxd5 {[%clk 0:02:09.3]} 16. exd5 {[%clk 0:01:28.8]} 16... Ne5 {[%clk
0:02:10.5]} 17. Rae1 {[%clk 0:01:28]} 17... c4 {[%clk 0:01:56.3]} 18. dxc4
{[%clk 0:00:55]} 18... Nxc4 {[%clk 0:01:58.2]} 19. Qc1 {[%clk 0:00:56.2]} 19...
Bd7 {[%clk 0:01:35.7]} 20. Nf3 {[%clk 0:00:49.1]} 20... Qb6+ {[%clk 0:00:48.6]}
21. Kh2 {[%clk 0:00:26.3]} 21... Nxb2 {[%clk 0:00:38.3]} 22. Be3 {[%clk
0:00:27.4]} 22... Nd3 {[%clk 0:00:27.3]} 23. Bxb6 {[%clk 0:00:27.5]} 23... Nxc1
{[%clk 0:00:28.4]} 24. Bc7 {[%clk 0:00:21.6]} 24... Nd3 {[%clk 0:00:13.8]} 25.
Re7 {[%clk 0:00:20.7]} 25... Bb5 {[%clk 0:00:11.5]} 26. Bxb8 {[%clk 0:00:19.6]}
26... Rxb8 {[%clk 0:00:13.4]} 27. Nd4 {[%clk 0:00:18.4]} 27... Be8 {[%clk
0:00:10.1]} 28. Rb1 {[%clk 0:00:13.7]} 28... Nc5 {[%clk 0:00:09.1]} 29. Rbe1
{[%clk 0:00:13.9]} 29... Kf8 {[%clk 0:00:09.7]} 30. Bf1 {[%clk 0:00:09.3]} 30...
Bf6 {[%clk 0:00:10.1]} 31. R7e3 {[%clk 0:00:08.6]} 31... a6 {[%clk 0:00:10.8]}
32. Rf3 {[%clk 0:00:09.6]} 32... Kg7 {[%clk 0:00:11.1]} 33. Nb3 {[%clk
0:00:10.8]} 33... Na4 {[%clk 0:00:11.6]} 34. c4 {[%clk 0:00:08.3]} 34... Bd7
{[%clk 0:00:12.5]} 35. Bd3 {[%clk 0:00:08.5]} 35... Be5 {[%clk 0:00:12.7]} 36.
Nd2 {[%clk 0:00:07.4]} 36... f5 {[%clk 0:00:11.5]} 37. Kg2 {[%clk 0:00:07.3]}
37... Nc5 {[%clk 0:00:12.1]} 38. Bf1 {[%clk 0:00:07.4]} 38... b5 {[%clk
0:00:13.1]} 39. cxb5 {[%clk 0:00:08.4]} 39... axb5 {[%clk 0:00:15]} 40. Rb1
{[%clk 0:00:09.5]} 40... Ra8 {[%clk 0:00:15.7]} 41. Bxb5 {[%clk 0:00:07.2]}
41... Rxa2 {[%clk 0:00:16.6]} 42. Rf2 {[%clk 0:00:07.8]} 42... Bd4 {[%clk
0:00:13.5]} 43. Re2 {[%clk 0:00:07.9]} 43... Bxb5 {[%clk 0:00:14.7]} 44. Rxb5
{[%clk 0:00:08.7]} 44... Bc3 {[%clk 0:00:16.2]} 45. Kf3 {[%clk 0:00:04.7]} 45...
Rxd2 {[%clk 0:00:16.5]} 46. Rxd2 {[%clk 0:00:04.7]} 46... Bxd2 {[%clk
0:00:18.4]} 47. Rb8 {[%clk 0:00:06.4]} 47... Bc3 {[%clk 0:00:16.9]} 48. g4
{[%clk 0:00:08]} 48... fxg4+ {[%clk 0:00:17.5]} 49. hxg4 {[%clk 0:00:09.9]}
49... h6 {[%clk 0:00:18.9]} 50. Rc8 {[%clk 0:00:11]} 50... Be5 {[%clk
0:00:19.9]} 51. Rc7+ {[%clk 0:00:12.4]} 51... Kf6 {[%clk 0:00:21.2]} 52. Rc8
{[%clk 0:00:14]} 52... Kg5 {[%clk 0:00:22.5]} 53. Rg8 {[%clk 0:00:15]} 53... Nb3
{[%clk 0:00:23.5]} 54. Kg2 {[%clk 0:00:15.2]} 54... Nd4 {[%clk 0:00:25.4]} 55.
Kh3 {[%clk 0:00:16.6]} 55... Ne2 {[%clk 0:00:26.2]} 56. Kg2 {[%clk 0:00:17.6]}
56... Nf4+ {[%clk 0:00:27.6]} 57. Kf3 {[%clk 0:00:19.4]} 57... Nxd5 {[%clk
0:00:29.5]} 58. Ra8 {[%clk 0:00:19.8]} 58... Nf6 {[%clk 0:00:30.3]} 59. Ra4
{[%clk 0:00:21.5]} 59... h5 {[%clk 0:00:31.4]} 60. gxh5 {[%clk 0:00:22.7]} 60...
gxh5 {[%clk 0:00:33.3]} 61. Kf2 {[%clk 0:00:24.1]} 61... h4 {[%clk 0:00:34.4]}
62. Kg2 {[%clk 0:00:25.7]} 62... Nd5 {[%clk 0:00:34.6]} 63. Ra5 {[%clk
0:00:24.2]} 63... Nf4+ {[%clk 0:00:35.2]} 64. Kf3 {[%clk 0:00:25.9]} 64... Ne6
{[%clk 0:00:25.3]} 65. Ra8 {[%clk 0:00:22.4]} 65... Kf5 {[%clk 0:00:26.4]} 66.
Kg2 {[%clk 0:00:18.8]} 66... Ng5 {[%clk 0:00:27.2]} 67. Ra4 {[%clk 0:00:17.7]}
67... h3+ {[%clk 0:00:27.9]} 68. Kh1 {[%clk 0:00:19.4]} 68... d5 {[%clk
0:00:29.1]} 69. Ra3 {[%clk 0:00:20.4]} 69... d4 {[%clk 0:00:29.6]} 70. Rf3+
{[%clk 0:00:22]} 70... Ke4 {[%clk 0:00:27.2]} 71. Rf1 {[%clk 0:00:23.1]} 71...
Bf4 {[%clk 0:00:26.4]} 72. Re1+ {[%clk 0:00:24.2]} 72... Be3 {[%clk 0:00:27.7]}
73. Rd1 {[%clk 0:00:22.5]} 73... Kf3 {[%clk 0:00:26.7]} 74. Kh2 {[%clk
0:00:23.2]} 74... Kg4 {[%clk 0:00:27.9]} 75. Ra1 {[%clk 0:00:23]} 75... Ne4
{[%clk 0:00:25]} 76. Ra2 {[%clk 0:00:17.6]} 76... Bf4+ {[%clk 0:00:22.6]} 77.
Kh1 {[%clk 0:00:18]} 77... d3 {[%clk 0:00:23.5]} 78. Ra1 {[%clk 0:00:14.9]}
78... d2 {[%clk 0:00:21]} 79. Kg1 {[%clk 0:00:12.5]} 79... Kf3 {[%clk
0:00:17.3]} 80. Rf1+ {[%clk 0:00:11.1]} 80... Ke3 {[%clk 0:00:18.8]} 81. Ra1
{[%clk 0:00:09.4]} 81... Ke2 {[%clk 0:00:18.8]} 82. Rf1 {[%clk 0:00:07.8]} 82...
Be3+ {[%clk 0:00:18.1]} 83. Kh1 {[%clk 0:00:08.6]} 83... Kxf1 {[%clk 0:00:19.1]}
0-1

[Event "*** Titled Tuesday Blitz"]
[Site "Chess.com"]
[Date "2019.05.07"]
[Round "7"]
[White "ENEASZ"]
[Black "Mimsychess"]
[Result "1-0"]
[WhiteElo "2509"]
[BlackElo "2340"]
[TimeControl "180+2"]
[EndTime "14:44:28 PDT"]
[Termination "ENEASZ won on time"]

1. e4 {[%clk 0:03:01.9]} 1... c5 {[%clk 0:02:55.2]} 2. c3 {[%clk 0:03:02.5]}
2... Nf6 {[%clk 0:02:53.4]} 3. e5 {[%clk 0:03:03.5]} 3... Nd5 {[%clk 0:02:54.7]}
4. d4 {[%clk 0:03:05.4]} 4... cxd4 {[%clk 0:02:55.9]} 5. cxd4 {[%clk 0:03:07.3]}
5... g6 {[%clk 0:02:46.7]} 6. Nf3 {[%clk 0:03:06.8]} 6... Bg7 {[%clk 0:02:46.4]}
7. Bc4 {[%clk 0:03:07.5]} 7... Nb6 {[%clk 0:02:41.5]} 8. Bb3 {[%clk 0:03:07.4]}
8... O-O {[%clk 0:02:42.9]} 9. O-O {[%clk 0:03:05]} 9... d6 {[%clk 0:02:44.5]}
10. h3 {[%clk 0:03:04.2]} 10... Bf5 {[%clk 0:02:20.4]} 11. Nc3 {[%clk
0:03:04.3]} 11... Nc6 {[%clk 0:02:14.4]} 12. Bf4 {[%clk 0:02:55.5]} 12... dxe5
{[%clk 0:02:05.4]} 13. dxe5 {[%clk 0:02:57.4]} 13... Na5 {[%clk 0:01:41.8]} 14.
Re1 {[%clk 0:02:55.8]} 14... Qxd1 {[%clk 0:01:37]} 15. Raxd1 {[%clk 0:02:53.4]}
15... Nxb3 {[%clk 0:01:25.9]} 16. axb3 {[%clk 0:02:55.3]} 16... Bc2 {[%clk
0:01:25.2]} 17. Rd4 {[%clk 0:02:56]} 17... Bxb3 {[%clk 0:01:22.4]} 18. Rb4
{[%clk 0:02:56.7]} 18... Bc4 {[%clk 0:01:14.4]} 19. Be3 {[%clk 0:02:55.5]} 19...
Rfc8 {[%clk 0:01:01.9]} 20. Bxb6 {[%clk 0:02:54]} 20... axb6 {[%clk 0:01:01.3]}
21. Rxb6 {[%clk 0:02:55.9]} 21... Rc7 {[%clk 0:00:58.9]} 22. Nd4 {[%clk
0:02:51]} 22... Rd8 {[%clk 0:00:52.9]} 23. Ndb5 {[%clk 0:02:47.5]} 23... Rc5
{[%clk 0:00:53.4]} 24. Rxb7 {[%clk 0:02:33.5]} 24... Rxe5 {[%clk 0:00:51.4]} 25.
Rxe5 {[%clk 0:02:32.1]} 25... Bxe5 {[%clk 0:00:50.3]} 26. Rxe7 {[%clk
0:02:28.5]} 26... Bf6 {[%clk 0:00:47.8]} 27. Re1 {[%clk 0:01:48]} 27... Bxb5
{[%clk 0:00:44.8]} 28. Nxb5 {[%clk 0:01:48.9]} 28... Bxb2 {[%clk 0:00:42.2]} 29.
Rb1 {[%clk 0:01:49.8]} 29... Rd2 {[%clk 0:00:42.5]} 30. Kf1 {[%clk 0:01:47.1]}
30... Be5 {[%clk 0:00:43.5]} 31. Re1 {[%clk 0:01:38.3]} 31... f6 {[%clk
0:00:41.8]} 32. Re2 {[%clk 0:01:32.3]} 32... Rd5 {[%clk 0:00:32.3]} 33. Na3
{[%clk 0:01:31.4]} 33... Rd1+ {[%clk 0:00:26]} 34. Re1 {[%clk 0:01:32.2]} 34...
Rxe1+ {[%clk 0:00:26.9]} 35. Kxe1 {[%clk 0:01:34.1]} 35... f5 {[%clk 0:00:28.2]}
36. Ke2 {[%clk 0:01:35.4]} 36... Kf7 {[%clk 0:00:29.4]} 37. Nc4 {[%clk
0:01:35.8]} 37... Ke6 {[%clk 0:00:30.8]} 38. Kd3 {[%clk 0:01:36.7]} 38... Kd5
{[%clk 0:00:31.1]} 39. Ne3+ {[%clk 0:01:38.1]} 39... Kc5 {[%clk 0:00:31.2]} 40.
Nf1 {[%clk 0:01:34.5]} 40... h5 {[%clk 0:00:29.3]} 41. Nd2 {[%clk 0:01:34.1]}
41... Kd5 {[%clk 0:00:29.6]} 42. Nf3 {[%clk 0:01:34]} 42... Bf6 {[%clk
0:00:30.9]} 43. Ng1 {[%clk 0:01:33.3]} 43... g5 {[%clk 0:00:29.6]} 44. Ne2
{[%clk 0:01:33.8]} 44... h4 {[%clk 0:00:25.4]} 45. Ke3 {[%clk 0:01:32.1]} 45...
Ke5 {[%clk 0:00:24.8]} 46. Kf3 {[%clk 0:01:33.5]} 46... Bd8 {[%clk 0:00:23.6]}
47. Nc3 {[%clk 0:01:34.3]} 47... Bb6 {[%clk 0:00:24]} 48. Ne2 {[%clk 0:01:25.9]}
48... Kd5 {[%clk 0:00:20.7]} 49. Nc1 {[%clk 0:01:18.9]} 49... Kd4 {[%clk
0:00:17.5]} 50. Ke2 {[%clk 0:01:10]} 50... Ke4 {[%clk 0:00:16.9]} 51. Nd3 {[%clk
0:01:10.3]} 51... g4 {[%clk 0:00:12.6]} 52. f3+ {[%clk 0:01:03.7]} 52... gxf3+
{[%clk 0:00:13.6]} 53. gxf3+ {[%clk 0:01:05.6]} 53... Kd4 {[%clk 0:00:13.5]} 54.
Nf4 {[%clk 0:01:07.2]} 54... Kc4 {[%clk 0:00:09.5]} 55. Ng2 {[%clk 0:00:53.9]}
55... Bd8 {[%clk 0:00:10.5]} 56. Ne3+ {[%clk 0:00:54.9]} 56... Kd4 {[%clk
0:00:10.6]} 57. Nxf5+ {[%clk 0:00:56.8]} 57... Ke5 {[%clk 0:00:12]} 58. Nh6
{[%clk 0:00:48.1]} 58... Kf4 {[%clk 0:00:13.1]} 59. Kf2 {[%clk 0:00:49.2]} 59...
Bc7 {[%clk 0:00:10.9]} 60. Ng4 {[%clk 0:00:47.9]} 60... Bb8 {[%clk 0:00:10.2]}
61. Nf6 {[%clk 0:00:47.6]} 61... Be5 {[%clk 0:00:08.4]} 62. Nd5+ {[%clk
0:00:47.2]} 62... Kg5 {[%clk 0:00:08.6]} 63. Ke3 {[%clk 0:00:44.8]} 63... Bg3
{[%clk 0:00:07.4]} 64. Ke4 {[%clk 0:00:45.5]} 64... Kg6 {[%clk 0:00:07.3]} 65.
f4 {[%clk 0:00:44.3]} 65... Kf7 {[%clk 0:00:07.7]} 66. Kf5 {[%clk 0:00:45.1]}
66... Be1 {[%clk 0:00:08.2]} 67. Ne3 {[%clk 0:00:45.4]} 67... Bf2 {[%clk
0:00:07.3]} 68. Ng2 {[%clk 0:00:46.6]} 68... Bg3 {[%clk 0:00:07.7]} 69. Kg5
{[%clk 0:00:46.3]} 69... Kg7 {[%clk 0:00:06]} 70. Nxh4 {[%clk 0:00:47.4]} 70...
Be1 {[%clk 0:00:05.2]} 71. Nf5+ {[%clk 0:00:48.5]} 71... Kh7 {[%clk 0:00:05]}
72. h4 {[%clk 0:00:50.4]} 72... Bc3 {[%clk 0:00:05.7]} 73. h5 {[%clk 0:00:51.9]}
73... Bb2 {[%clk 0:00:06.7]} 74. Nh4 {[%clk 0:00:52.9]} 74... Ba1 {[%clk
0:00:06.7]} 75. Nf5 {[%clk 0:00:53.9]} 75... Bb2 {[%clk 0:00:07.5]} 76. Kg4
{[%clk 0:00:55.5]} 76... Ba1 {[%clk 0:00:08.6]} 77. Kf3 {[%clk 0:00:57]} 77...
Bb2 {[%clk 0:00:09.8]} 78. Ke4 {[%clk 0:00:58.7]} 78... Ba1 {[%clk 0:00:10.8]}
79. Kf3 {[%clk 0:00:58.3]} 79... Bb2 {[%clk 0:00:11.9]} 80. Kg4 {[%clk 0:01:00]}
80... Ba1 {[%clk 0:00:13]} 81. Kg5 {[%clk 0:01:01.7]} 81... Bb2 {[%clk
0:00:14.2]} 82. Ne3 {[%clk 0:00:59.6]} 82... Ba1 {[%clk 0:00:13]} 83. Ng4 {[%clk
0:01:00.9]} 83... Bb2 {[%clk 0:00:11.9]} 84. Kh4 {[%clk 0:01:02.3]} 84... Ba1
{[%clk 0:00:12.9]} 85. Kg3 {[%clk 0:01:03.5]} 85... Bb2 {[%clk 0:00:13.9]} 86.
Kf3 {[%clk 0:01:05]} 86... Ba1 {[%clk 0:00:15.2]} 87. Ke4 {[%clk 0:01:06.5]}
87... Bb2 {[%clk 0:00:16.6]} 88. Kd5 {[%clk 0:01:08.1]} 88... Ba1 {[%clk
0:00:17.7]} 89. Ke6 {[%clk 0:01:09.4]} 89... Kg7 {[%clk 0:00:09.9]} 90. f5
{[%clk 0:01:05.8]} 90... Bb2 {[%clk 0:00:08.4]} 91. f6+ {[%clk 0:01:07.1]} 91...
Kh7 {[%clk 0:00:09.3]} 92. Kf7 {[%clk 0:01:01.8]} 92... Bc3 {[%clk 0:00:08.6]}
93. Ke8 {[%clk 0:00:59.7]} 93... Bxf6 {[%clk 0:00:03.4]} 94. Nxf6+ {[%clk
0:01:01.6]} 94... Kh6 {[%clk 0:00:04.8]} 95. Kf7 {[%clk 0:01:02.3]} 1-0

[Event "*** Titled Tuesday Blitz"]
[Site "Chess.com"]
[Date "2019.05.07"]
[Round "7"]
[White "Keaton87"]
[Black "EfrenRamos1"]
[Result "0-1"]
[WhiteElo "2540"]
[BlackElo "2339"]
[TimeControl "180+2"]
[EndTime "14:44:44 PDT"]
[Termination "EfrenRamos1 won by resignation"]

1. Nf3 {[%clk 0:03:01.9]} 1... Nf6 {[%clk 0:02:56.3]} 2. c4 {[%clk 0:03:02.4]}
2... c6 {[%clk 0:02:56.5]} 3. e3 {[%clk 0:03:01.2]} 3... d5 {[%clk 0:02:58.4]}
4. Nc3 {[%clk 0:03:00]} 4... e6 {[%clk 0:02:59]} 5. Qc2 {[%clk 0:02:58.3]} 5...
Be7 {[%clk 0:02:58.4]} 6. b3 {[%clk 0:02:57.9]} 6... a5 {[%clk 0:02:59.8]} 7.
Bb2 {[%clk 0:02:57.6]} 7... Na6 {[%clk 0:03:00.9]} 8. Be2 {[%clk 0:02:55.7]}
8... Nb4 {[%clk 0:03:01.3]} 9. Qb1 {[%clk 0:02:56.3]} 9... O-O {[%clk
0:03:00.1]} 10. a3 {[%clk 0:02:57]} 10... Na6 {[%clk 0:03:00.9]} 11. O-O {[%clk
0:02:55.6]} 11... Nc5 {[%clk 0:03:00.2]} 12. Qc2 {[%clk 0:02:55.1]} 12... b6
{[%clk 0:02:56.9]} 13. b4 {[%clk 0:02:52.3]} 13... Nce4 {[%clk 0:02:54.4]} 14.
d3 {[%clk 0:02:48.6]} 14... Nd6 {[%clk 0:02:48.4]} 15. c5 {[%clk 0:02:45.5]}
15... Nb7 {[%clk 0:02:38.2]} 16. d4 {[%clk 0:02:46.1]} 16... b5 {[%clk
0:02:37.5]} 17. e4 {[%clk 0:02:39.7]} 17... dxe4 {[%clk 0:02:37.5]} 18. Nxe4
{[%clk 0:02:40.6]} 18... Nd5 {[%clk 0:02:39]} 19. Ne5 {[%clk 0:02:40.7]} 19...
Bd7 {[%clk 0:02:36.9]} 20. Bc3 {[%clk 0:02:38.2]} 20... f6 {[%clk 0:02:34.5]}
21. Nd3 {[%clk 0:02:35.8]} 21... Qc7 {[%clk 0:02:31]} 22. Bd2 {[%clk 0:02:31]}
22... axb4 {[%clk 0:02:25.3]} 23. axb4 {[%clk 0:02:31.5]} 23... Rfc8 {[%clk
0:02:23.7]} 24. Nc3 {[%clk 0:02:32.2]} 24... Nd8 {[%clk 0:02:20.7]} 25. Nxd5
{[%clk 0:02:32.4]} 25... cxd5 {[%clk 0:02:18.2]} 26. Bf4 {[%clk 0:02:27.9]}
26... Qb7 {[%clk 0:02:18.4]} 27. Be3 {[%clk 0:02:24.2]} 27... Nc6 {[%clk
0:02:18.5]} 28. f4 {[%clk 0:02:24.5]} 28... f5 {[%clk 0:02:15.6]} 29. Ne5 {[%clk
0:02:23]} 29... Be8 {[%clk 0:02:11]} 30. Nxc6 {[%clk 0:02:22.3]} 30... Bxc6
{[%clk 0:02:11.2]} 31. Ra5 {[%clk 0:02:17.1]} 31... Bd8 {[%clk 0:02:10.7]} 32.
Raa1 {[%clk 0:02:12]} 32... Rxa1 {[%clk 0:02:09.7]} 33. Rxa1 {[%clk 0:02:12.1]}
33... Ra8 {[%clk 0:02:11.1]} 34. Qb1 {[%clk 0:02:07.7]} 34... Ra6 {[%clk
0:02:09.7]} 35. Bd2 {[%clk 0:02:05.6]} 35... Qa7 {[%clk 0:02:09.8]} 36. Rxa6
{[%clk 0:02:05.6]} 36... Qxa6 {[%clk 0:02:11.7]} 37. Bc3 {[%clk 0:02:06.7]}
37... Qa3 {[%clk 0:02:12.1]} 38. Qb2 {[%clk 0:02:06.5]} 38... Qa4 {[%clk
0:02:10.6]} 39. Kf2 {[%clk 0:02:07]} 39... Bh4+ {[%clk 0:02:09.2]} 40. g3 {[%clk
0:02:07.8]} 40... Bf6 {[%clk 0:02:09.4]} 41. Ke1 {[%clk 0:02:07.7]} 41... Be8
{[%clk 0:02:03.3]} 42. Bd1 {[%clk 0:02:08.7]} 42... Qa6 {[%clk 0:02:02.8]} 43.
Qa1 {[%clk 0:02:07.9]} 43... Qxa1 {[%clk 0:02:00.1]} 44. Bxa1 {[%clk 0:02:09.8]}
44... Bc6 {[%clk 0:02:00.5]} 45. Kf2 {[%clk 0:02:06]} 45... g6 {[%clk
0:02:00.1]} 46. h3 {[%clk 0:01:57.8]} 46... Kg7 {[%clk 0:01:59.9]} 47. g4 {[%clk
0:01:57.8]} 47... Bh4+ {[%clk 0:01:58.4]} 48. Ke2 {[%clk 0:01:55.9]} 48... Bg3
{[%clk 0:01:59.1]} 49. Ke3 {[%clk 0:01:40.8]} 49... Be1 {[%clk 0:01:58.9]} 50.
Kd3 {[%clk 0:01:38.6]} 50... Bxb4 {[%clk 0:01:57.7]} 51. Bc3 {[%clk 0:01:40.1]}
51... Ba3 {[%clk 0:01:54.5]} 52. g5 {[%clk 0:01:37.9]} 52... Kf7 {[%clk
0:01:48.1]} 53. Kc2 {[%clk 0:01:33.3]} 53... b4 {[%clk 0:01:42.5]} 54. Kb3
{[%clk 0:01:22.6]} 54... Bc1 {[%clk 0:01:43.3]} 55. Kxb4 {[%clk 0:01:15]} 55...
Bxf4 {[%clk 0:01:43.7]} 56. h4 {[%clk 0:01:12.4]} 56... Bg3 {[%clk 0:01:43.2]}
57. Ka5 {[%clk 0:01:13]} 57... Bc7+ {[%clk 0:01:40.4]} 58. Ka6 {[%clk
0:01:13.7]} 58... Ke7 {[%clk 0:01:38]} 59. Ba5 {[%clk 0:01:13.5]} 59... Bg3
{[%clk 0:01:37.7]} 60. Kb6 {[%clk 0:01:12.2]} 60... Kd7 {[%clk 0:01:37.9]} 61.
Be2 {[%clk 0:01:11.2]} 61... Bxh4 {[%clk 0:01:28.5]} 62. Bd2 {[%clk 0:01:08.9]}
62... Bg3 {[%clk 0:01:26.7]} 63. Bb5 {[%clk 0:00:57.1]} 63... Bc7+ {[%clk
0:01:26.4]} 64. Ka6 {[%clk 0:00:58.4]} 64... e5 {[%clk 0:01:26.4]} 65. dxe5
{[%clk 0:00:49.1]} 65... Bxe5 {[%clk 0:01:26]} 66. Bd3 {[%clk 0:00:44.5]} 66...
Bc7 {[%clk 0:01:20.9]} 67. Be3 {[%clk 0:00:30]} 67... f4 {[%clk 0:01:11.9]} 68.
Bf2 {[%clk 0:00:31.1]} 68... Be5 {[%clk 0:01:07]} 69. Kb6 {[%clk 0:00:29.1]}
69... Bc7+ {[%clk 0:01:04.9]} 70. Ka6 {[%clk 0:00:29.7]} 70... Bd8 {[%clk
0:01:05.7]} 71. Bh4 {[%clk 0:00:30.2]} 71... Ke6 {[%clk 0:01:03.7]} 72. Bb5
{[%clk 0:00:28.8]} 72... Kd7 {[%clk 0:00:53.5]} 73. Be2 {[%clk 0:00:28.8]} 73...
d4 {[%clk 0:00:50.7]} 74. Bg4+ {[%clk 0:00:27.3]} 74... Kc7 {[%clk 0:00:48.3]}
75. Be2 {[%clk 0:00:28.3]} 75... Be4 {[%clk 0:00:47.6]} 76. Bb5 {[%clk 0:00:25]}
76... Be7 {[%clk 0:00:43.6]} 77. Be1 {[%clk 0:00:18]} 77... Bxc5 {[%clk
0:00:43.6]} 78. Bd2 {[%clk 0:00:17.1]} 78... f3 {[%clk 0:00:42.4]} 79. Bf4+
{[%clk 0:00:17.4]} 79... Bd6 {[%clk 0:00:42.8]} 80. Bd2 {[%clk 0:00:18.5]} 80...
f2 {[%clk 0:00:38.8]} 81. Ba5+ {[%clk 0:00:19.5]} 81... Kb8 {[%clk 0:00:39.4]}
82. Bb6 {[%clk 0:00:19.4]} 82... Be5 {[%clk 0:00:33.2]} 83. Ba7+ {[%clk
0:00:18]} 83... Kc7 {[%clk 0:00:32.7]} 84. Bb6+ {[%clk 0:00:19.4]} 84... Kd6
{[%clk 0:00:33.3]} 85. Bf1 {[%clk 0:00:19.2]} 85... Ke6 {[%clk 0:00:31.6]} 86.
Bh3+ {[%clk 0:00:18.8]} 86... Bf5 {[%clk 0:00:31.8]} 87. Bf1 {[%clk 0:00:20.5]}
87... Bg4 {[%clk 0:00:31.6]} 88. Kb5 {[%clk 0:00:18]} 88... Kf5 {[%clk
0:00:32.4]} 89. Kc4 {[%clk 0:00:18.5]} 89... Kxg5 {[%clk 0:00:33]} 90. Kd5
{[%clk 0:00:13.2]} 90... Bf6 {[%clk 0:00:30.6]} 91. Ke4 {[%clk 0:00:13.9]} 91...
h5 {[%clk 0:00:30.1]} 92. Bc7 {[%clk 0:00:11.5]} 92... h4 {[%clk 0:00:29.7]} 93.
Bf4+ {[%clk 0:00:12.8]} 93... Kh5 {[%clk 0:00:30.3]} 94. Bg2 {[%clk 0:00:11.7]}
94... Be2 {[%clk 0:00:29.7]} 0-1